Cogmind - Beta 17.1 @@@ ROGUE MODE // 2026.09.16 @ 03:52:32 Player: Sunvar Result: Destroyed by 6W-5BD(R) with Subdweller Shrapnel Launcher Performance ------------- Evolutions (0) 0 Regions Visited (2) 400 Robots Destroyed (37) 185 Value Destroyed (707) 707 Prototype IDs (0) 0 Alien Tech Used (0) 0 Bonus (0) 0 TOTAL SCORE: 1292 Bonus ------- None Cogmind --------- Core Integrity 0/250 Matter 239/300 Energy 250/250 System Corruption 2% Temperature Cool (0) Movement Treading (240) Ox1 Location -10/Subcaves Parts ------- > --- POWER (1) -------- Ion Engine > --- PROPULSION (2) --- Light Treads Light Treads > --- UTILITY (2) ------ High-capacity Storage Unit Seismic Detector > --- WEAPON (2) ------- Subdweller Laser Assault Rifle > --- INVENTORY (20) --- Subdweller Power Source Light Treads Subdweller Monowheel Subdweller Monowheel Subdweller Optics Medium Armor Plating Medium Armor Plating Medium Armor Plating Medium Armor Plating Scrap Shield Hacking Suite Hacking Suite Subdweller Laser Subdweller Beam Cannon Subdweller Beam Cannon Battle Cannon Subdweller Shrapnel Launcher Datajack Makeshift Axe Peak State ------------ > --- POWER ------------ Ion Engine > --- PROPULSION ------- Light Treads Light Treads > --- UTILITY ---------- High-capacity Storage Unit Seismic Detector > --- WEAPON ----------- Assault Rifle Makeshift Axe > --- INVENTORY -------- Subdweller Power Source Light Treads Subdweller Monowheel Subdweller Monowheel Subdweller Optics Medium Armor Plating Medium Armor Plating Medium Armor Plating Medium Armor Plating Scrap Shield Hacking Suite Hacking Suite Subdweller Laser Subdweller Laser Subdweller Beam Cannon Subdweller Beam Cannon Battle Cannon Subdweller Shrapnel Launcher Datajack [Rating: 14] Favorites ----------- Power Ion Engine Engine Ion Engine Propulsion Light Treads Treads Light Treads Leg Aluminum Leg Utility Seismic Detector Device Seismic Detector Storage High-capacity Storage Unit Protection Medium Armor Plating Weapon EM Shotgun Energy Gun EM Shotgun Ballistic Gun Light Assault Rifle Impact Weapon Hammer Slashing Weapon Makeshift Axe Special Melee Weapon Datajack Build | -11 -10 -10 ------- Run | Yrd Mat Sub Slots Evolved . | . . . Power . | . . . Propulsion . | . . . Utility . | . . . Weapon . | . . . Parts Attached 25 | 1 12 12 Power 2 | . 1 1 Engine 2 | . 1 1 Core . | . . . Reactor . | . . . Propulsion 6 | . 5 1 Treads 3 | . 2 1 Leg 3 | . 3 . Wheel . | . . . Hover . | . . . Flight . | . . . Utility 7 | . 4 3 Device 2 | . 1 1 Storage 3 | . 3 . Processor . | . . . Hackware . | . . . Protection 2 | . . 2 Artifact . | . . . Weapon 10 | 1 2 7 Energy Gun 6 | 1 2 3 Energy Cannon . | . . . Ballistic Gun 1 | . . 1 Ballistic Cannon . | . . . Launcher . | . . . Special Weapon . | . . . Impact Weapon 1 | . . 1 Slashing Weapon 1 | . . 1 Piercing Weapon . | . . . Special Melee Weapon 1 | . . 1 Unidentified Prototypes . | . . . Parts Lost 6 | . . 6 Power 1 | . . 1 Propulsion 1 | . . 1 Utility 1 | . . 1 Weapon 3 | . . 3 Highest Loss Streak 4 | . . 4 To Critical Strikes . | . . . Average Backups 16 | 6 12 19 Power 1 | 1 1 . Propulsion 2 | 4 3 1 Utility 6 | . 4 8 Weapon 5 | 1 3 7 Tool/Special . | . . . Unused Backups 30 | 5 7 18 Power 3 | 1 1 1 Propulsion 7 | 2 2 3 Utility 10 | 1 3 6 Weapon 10 | 1 1 8 Tool/Special . | . . . Average Slot Usage (%) 96 | . 90 99 Engine 13 | . 14 13 Treads 22 | . 13 28 Leg 5 | . 14 . Device 10 | . 4 13 Storage 14 | . 14 14 Energy Gun 20 | . 16 22 Ballistic Gun 4 | . 11 1 Impact Weapon 2 | . . 3 Peak Build Rating 14 | 6 12 14 Average Rating 10 | 6 7 11 On Entrance 8 | 6 6 12 Avg Prop Armor Cover (%) . | . . . Naked Turns . | . . . Heaviest Build 56 | 11 52 56 Greatest Support 40 | 20 40 40 Greatest Overweight (x) 1 | . 1 1 Average Overweight (x) . | . . 1 Largest Inventory Capacity 20 | 8 20 20 Average Capacity 17 | 8 13 20 Most Carried 20 | 6 20 20 Average Carried 16 | 6 12 19 Final Capacity 20 | 8 20 20 Final Carried 20 | 6 20 20 Class Distribution -------------------- 100% | Mutant Dominant Class ---------------- Mutant | -10/Materials Mutant | -10/Subcaves Resources | -11 -10 -10 ----------- Run | Yrd Mat Sub Matter Collected 687 | 222 181 284 Remotely . | . . . Salvage Created 1227 | 151 558 518 Parts 99 | 12 48 39 Haulers Intercepted 2 | . 2 . Recyclers Shooed 3 | . 3 . Parts Field Recycled . | . . . Retrieved Matter . | . . . Parts Self-Destructed 15 | . . 15 Prevented . | . . . Parts Restored . | . . . Kills | -11 -10 -10 ------- Run | Yrd Mat Sub Combat Hostiles Destroyed 20 | . 8 12 Melee 2 | . . 2 Guns 17 | . 8 9 Classes Destroyed 8 | 2 5 1 Tunneler 8 | 5 3 . Hauler 2 | . 2 . Recycler 2 | 1 1 . Operator 2 | . 2 . Watcher 3 | . 3 . Swarmer 8 | . 5 3 Grunt 3 | . 3 . Subdweller 9 | . . 9 Best Kill Streak 4 | 4 4 3 Combat Bots Only 3 | . 3 3 Max Kills in Single Turn 1 | 1 1 1 Gunslinging . | . . . Exploded . | . . . Melee 1 | . . 1 Uniques/NPCs Destroyed . | . . . Combat | -11 -10 -10 -------- Run | Yrd Mat Sub Hostile Shots Fired 123 | . 47 76 Missed 46 | . 19 27 Hits 77 | . 28 49 Projectile 77 | . 28 49 AOE 4 | . . 4 Damage Taken 1438 | . 314 1124 Core 269 | . 73 196 Absorbed by Shields . | . . . Core Remaining (%) 100 | 100 . . Volleys Fired 102 | 12 52 38 Largest 2 | 2 2 2 Hottest 90 | 70 90 90 Shots Fired 205 | 24 104 77 Gun 205 | 24 104 77 Cannon . | . . . Launcher . | . . . Special . | . . . Kinetic 75 | 12 50 13 Thermal 68 | 12 50 6 Explosive . | . . . Electromagnetic 62 | . 4 58 Robot Hit Streak 20 | 6 10 20 Robot Miss Streak 6 | 1 6 2 Penetration Max . | . . . Secondary Targets 2 | . 1 1 Max Gunslinging Chain 1 | . 1 1 Shots Hit Robots 152 | 14 62 76 Core Hits 67 | 7 32 28 Critical Kills . | . . . Critical Parts Destroyed . | . . . Critical Strikes 2 | 1 1 . Burn 2 | 1 1 . Melee Attacks 37 | . . 37 Impact 36 | . . 36 Slashing . | . . . Piercing . | . . . Sneak Attacks 1 | . . 1 Combat Hostiles . | . . . Follow-up Attacks . | . . . Damage Inflicted 1699 | 144 692 863 Guns 1606 | 144 674 788 Cannons . | . . . Explosions . | . . . Melee 75 | . . 75 Ramming 18 | . 18 . Kinetic 372 | 70 229 73 Thermal 596 | 74 413 109 Explosive . | . . . Electromagnetic 638 | . 32 606 Impact 75 | . . 75 Slashing . | . . . Piercing . | . . . Highest Corruption 2 | . 2 2 Average Corruption 1 | . 1 2 Corruption Purged . | . . . Corruption Blocked . | . . . Effects 31 | . 8 23 Message Errors 8 | . 2 6 Matter Fused 8 | . 3 5 Heat Flow Errors 2 | . 1 1 Energy Discharges 2 | . . 2 Parts Fused 1 | . . 1 Data Loss (minor) 4 | . 1 3 Data Loss (major) 2 | . 1 1 Misfires 2 | . . 2 Alerts 2 | . . 2 Overload Shots . | . . . Overflow Damage . | . . . Projectiles . | . . . Explosions . | . . . Melee . | . . . Knockbacks . | . . . Impact . | . . . Kinetic . | . . . Secondary . | . . . Self-Inflicted Damage . | . . . Shots . | . . . Rammed 3 | . 3 . Targets Rammed 5 | . 5 . Kicked 1 | . 1 . Crushed 1 | . 1 . Highest Temperature 251 | 110 251 86 Average Temperature 53 | 52 53 46 Received Heat Transfer 165 | . 72 93 Siege Activations . | . . . Martial Activations . | . . . Shielding Activations . | . . . Robots Disrupted . | . . . Combat Hostiles . | . . . Robots Corrupted 1 | . . 1 Combat Hostiles 1 | . . 1 Parts Fried 5 | . . 5 Impact Corruptions . | . . . Robots Melted . | . . . Combat Hostiles . | . . . Parts Melted 1 | . 1 . Heat Transferred 1716 | 296 1295 125 Parts Sabotaged . | . . . Parts Stolen . | . . . Parts Stripped . | . . . Power Chain Reactions . | . . . Alert | -11 -10 -10 ------- Run | Yrd Mat Sub Maximum Alert Level . | . . . Low Security (%) 100 | 100 100 . Level 1 . | . . . Level 2 . | . . . Level 3 . | . . . Level 4 . | . . . Level 5 . | . . . High Security . | . . . Max Security . | . . . Peak Influence 85 | 10 85 . Initial . | . . . Average 11 | 3 12 . Influence Increases 370 | 30 270 70 Destroy 0b10 Robot/C 220 | . 160 60 Destroy 0b10 Robot/NC 85 | 30 55 . Destroy Leader 50 | . 40 10 Lose Combat Pursuer 15 | . 15 . Influence Decreases 370 | 30 270 70 Time Decay 370 | 30 270 70 Squads Dispatched 1 | . 1 . Investigation . | . . . Extermination . | . . . Reinforcement 1 | . 1 . Assault . | . . . Garrison . | . . . Intercept . | . . . Searches Triggered . | . . . Construction Impeded . | . . . Haulers Reinforced . | . . . Active Scanning Responses . | . . . Cargo Convoy Interrupts . | . . . Stealth | -11 -10 -10 --------- Run | Yrd Mat Sub Distress Signals . | . . . Communications Jammed . | . . . Distress Signals . | . . . Times Spotted 39 | . 26 13 Peak Tracking Total 4 | . 4 3 Tactical Retreats 1 | . 1 . Traps | -11 -10 -10 ------- Run | Yrd Mat Sub Traps Triggered 2 | . 2 . Indirectly . | . . . Trap Hack Attempts . | . . . Triggered . | . . . Disarmed . | . . . Reprogrammed . | . . . Reused . | . . . Traps Extracted . | . . . Installed . | . . . Triggered . | . . . Machines | -11 -10 -10 ---------- Run | Yrd Mat Sub Machines Disabled . | . . . Max in Single Turn . | . . . Machines Repaired . | . . . Machines Dismantled . | . . . Machines Sabotaged . | . . . Overloaded Fab Kills . | . . . Hacking | -11 -10 -10 --------- Run | Yrd Mat Sub Machines Accessed 1 | . 1 . Terminals 1 | . 1 . Fabricators . | . . . Repair Stations . | . . . Recycling Units . | . . . Scanalyzers . | . . . Garrison Access . | . . . Total Hacks 2 | . 2 . Successful . | . . . Failed 2 | . 2 . Catastrophic 1 | . 1 . Database Lockouts . | . . . Manual 2 | . 2 . Terminals 2 | . 2 . Fabricators . | . . . Repair Stations . | . . . Recycling Units . | . . . Scanalyzers . | . . . Garrison Access . | . . . Terminal Hacks . | . . . Fabricator Hacks . | . . . Repair Station Hacks . | . . . Recycling Unit Hacks . | . . . Scanalyzer . | . . . Garrison Access Hacks . | . . . Unauthorized Hacks . | . . . Terminals . | . . . Fabricators . | . . . Repair Stations . | . . . Recycling Units . | . . . Scanalyzers . | . . . Garrison Access . | . . . Data Cores Recovered . | . . . Used . | . . . Hacking Detections 1 | . 1 . Full Trace Events 1 | . 1 . Feedback Events . | . . . Feedback Blocked . | . . . Robot Schematics Acquired . | . . . Robots Built . | . . . Authchips . | . . . Time . | . . . Total Robot Build Rating . | . . . Part Schematics Acquired . | . . . Parts Built . | . . . Authchips . | . . . Time . | . . . Total Part Build Rating . | . . . Part Studies Acquired . | . . . Parts Repaired . | . . . Time . | . . . Parts Recycled . | . . . Recycled Matter . | . . . Retrieved Matter . | . . . Retrieved Components . | . . . Parts Scanalyzed . | . . . Part Schematics Acquired . | . . . Parts Damaged . | . . . Bothacking | -11 -10 -10 ------------ Run | Yrd Mat Sub Used RIF Installer . | . . . Robots Hacked 1 | . . 1 Non-combat 1 | . . 1 Combat . | . . . Robot Hacks Applied 1 | . . 1 parse_system 1 | . . 1 Relay Couplers Released . | . . . Fabnet Peak Effective % . | . . . Robots Rewired . | . . . Allies Hacked . | . . . Hacks Repelled . | . . . Allies | -11 -10 -10 -------- Run | Yrd Mat Sub Total Allies . | . . . Largest Group . | . . . Highest-Rated Group . | . . . Highest-Rated Ally . | . . . Total Orders . | . . . Ally Attacks . | . . . Total Damage . | . . . Kills . | . . . Allies Corrupted . | . . . Allies Melted . | . . . Intel | -11 -10 -10 ------- Run | Yrd Mat Sub Active Infowar (turns) 2858 | . 468 2390 Seismic 2858 | . 468 2390 Robot Analysis Total . | . . . Derelict Logs Recovered 1 | . . 1 Drone Launches . | . . . Drone Recoveries . | . . . Exploration | -11 -10 -10 ------------- Run | Yrd Mat Sub Turns Passed 3933 | 88 1364 2481 Spaces Moved 1673 | 21 740 912 Core . | . . . Treads 1246 | . 334 912 Legs 427 | 21 406 . Wheels . | . . . Hover . | . . . Flight . | . . . Fastest Speed 120 | 120 120 240 Average Speed 199 | 120 152 240 Slowest Speed 240 | 120 240 240 Overloaded Moves . | . . . Propulsion Burnouts . | . . . Robots Hopped . | . . . Potential Cave-ins . | . . . Cave-ins Triggered . | . . . Exploration Rate (%) 52 | 3 98 57 Regions Visited 2 Branch Regions 1 Pre-discovered Areas . | . . . Known Exits Taken . | . . . Unknown Exits Taken 2 | 1 1 . Scrap Searched 6 | . . 6 Spaces Dug 4 | . . 4 Terrain Destroyed 4 | . . 4 Melee 4 | . . 4 Projectile . | . . . AOE . | . . . Terrain Rammed . | . . . Walls Destroyed . | . . . Machines Disabled . | . . . Actions | -11 -10 -10 --------- Run | Yrd Mat Sub Total 2005 | 61 886 1058 Wait 84 | 28 31 25 Move 1671 | 20 739 912 Hop . | . . . Pick Up 36 | . 25 11 Fast Attach 6 | . 5 1 Attach 9 | . 2 7 Detach 4 | . 4 . Swap 26 | 1 5 20 Drop 25 | . 18 7 Fire 102 | 12 52 38 Melee 37 | . . 37 Ram . | . . . Kick 1 | . 1 . Crush 4 | . 4 . Escape Stasis . | . . . Rewire . | . . . Trap . | . . . Miscellaneous . | . . . Route ------- -11/Scrapyard -10/Materials (discovered 5 exits: [*Mat x3] / [*Min] / [*Sub]) -10/Subcaves (discovered 1 exit: [*Scr]) History --------- Turn | Location | Event 17 | -11/Scrapyard | Discovered new exit (range 3) 89 | -11/Scrapyard | Entered Materials 304 | -10/Materials | Build established: Mutant 404 | -10/Materials | Discovered new exit (range 16) 558 | -10/Materials | Discovered new exit (range 4) 769 | -10/Materials | Discovered new exit (range 5) 935 | -10/Materials | Discovered new exit (range 15) 1436 | -10/Materials | Discovered new exit (range 9) 1453 | -10/Materials | Entered Subcaves 1454 | -10/Subcaves | Approached by a straggling Scientist 1466 | -10/Subcaves | Shifting Twisted Machinery released Sub. Optics 1476 | -10/Subcaves | Shifting Twisted Machinery released Sub. Shrapnel Launcher 1648 | -10/Subcaves | Shifting Twisted Machinery released Scrap Shield 1659 | -10/Subcaves | Shifting Twisted Machinery released Sub. Laser 1778 | -10/Subcaves | Scientist uncovered a shortcut to Scraptown 2755 | -10/Subcaves | Shifting Twisted Machinery released Scrap Shield 2835 | -10/Subcaves | Shifting Twisted Machinery released Battle Cannon 2849 | -10/Subcaves | A swath of the cavern ceiling suddenly collapsed 3578 | -10/Subcaves | Core integrity fell below 50% 3683 | -10/Subcaves | Disturbed a concealed Subdweller 3748 | -10/Subcaves | Lost 4 parts (1p1u2w) 3929 | -10/Subcaves | Core integrity fell below 20% 3934 | -10/Subcaves | Destroyed by 6W-5BD(R) with Subdweller Shrapnel Launcher Last Messages --------------- 03739_ Found Sub. Power Source. 03739_ Found 43 Matter. 03740_ Acquired 10 matter. 03746_ Acquired Sub. Power Source. 03750_ Acquired Battle Cannon. 03755_ Searching scrap... 03755_ Found Mak. Kinetic Plating. 03755_ Found Sub. Laser. 03755_ Found 64 Matter. 03760_ Acquired Sub. Laser. 03761_ Searching scrap... 03761_ Found Sub. Monowheel. 03761_ Found 39 Matter. 03773_ Searching scrap... 03773_ Found Mak. Axe. 03773_ Found Sub. Beam Cannon. 03773_ Found 39 Matter. 03778_ Dropped Hammer. 03781_ Acquired Mak. Axe. 03921_ T3-VSX(R) destroyed. Map ----- +----------------------------------------------------+ | ?????????????????????????????????????????????????? | | ?????????????????????????????????????????????????? | | ?????????????????????????????????????????????????? | | ?????????????????????????????????????????????????? | | ?????????????????????????????????????????????????? | | ?????????????????????????????????????????????????? | | ?????????????????????????????????????????????????? | | ?????????????????????????????????????????????????? | | ?????????????????????????????????????????????????? | | ?????????????????????????????????????????????????? | | ?????????????????????????? ????????????????????? | | ?????????????????????????? ##??????????????????? | | ?????????????????????????? ???????????????????? | | ???????????????????????### ???????????????????? | | ????????????????????#### ????????????????????? | | ????????????????????# ????????????????????? | | ????????????????????# #????????????#???????? | | ????????????????????# ##??????????? ???????? | | ????????????????????# #???????? ?# ???????? | | ???????????????????## ###?? # ? ##?????? | | ??????????????????##;; ## ? ##????? | | ??????????????????# ??? ##???? | | ??????????????????# ; ?????# #???? | | ??????????????????# ; ; ????????# #???? | | ??????????????????#;; ;#?????????## #???? | | ??????????????????#; @ ;##???????## #??### | | ????????????????# #???????# #?### # | | ????????????????# ; & #??????### #### | | ????????????????## # #??##### # | | ???????????? ## #;; #?## | | ??????????? ## #### ## | | ???????????? #### | | ????????????? #### ### #??# | | ????????????????????# R ### #?? | | ???????????????????# ## ### #?# | | ???????????????????# ## ### #?# ##?## | | ???????????????????##### ######## ##?# ##???? | | ???????????????????????#######?##### ##??###????? | | ??????????????????????????????## ##?????????? | | ??????????????????????????????# #?????????? | | ?????????????????????????????# ####?????????? | | ?????????????????????????????########????????????? | | ?????????????????????????????????????????????????? | | ?????????????????????????????????????????????????? | | ?????????????????????????????????????????????????? | | ?????????????????????????????????????????????????? | | ?????????????????????????????????????????????????? | | ?????????????????????????????????????????????????? | | ?????????????????????????????????????????????????? | | ?????????????????????????????????????????????????? | +----------------------------------------------------+ Best States ------------- Heat Dissipation 25 Energy Generation 10 Energy Capacity 250 Matter Stores 300 Matter Capacity 300 Sight Range 16 Terrain Scan Density 10 Armor Coverage 225 Evasion (%) 55 Recoil Reduction 2 Item Schematics ----------------- None Robot Schematics ------------------ None Fabricated ------------ Nothing Repaired ---------- Nothing Studied --------- None Alien Tech Used ----------------- None Achievements -------------- None Challenges ------------ None Game ------ Seed AssembledDecoderHammer Manual? 0 Play Time 00:33:01 Cumulative 269.2 hours Start 2026.09.16 @ 01:29:28 End 2026.09.16 @ 03:52:32 Sessions 1 Manual Loads 0 Difficulty Rogue Special Mode None Game No. 171 Rogue 171 Adventurer 0 Explorer 0 Win Type - Total 25 Types 12/0/4/9/0/0/0/0/0/0 Lore% 73 Gallery% 62 Achievement% 49 Wizard Run 0 Options --------- Layout 0 ASCII 0 Keyboard 1 Movement Arrows Keybinds 0 Fullscreen 1 Font 18/X11 Map View 76x50 Zoom Use 0% Tactical HUD 1 Map Filters NONE Filters NONE Steam 1 RUN: c29f02d3-a510-4dff-be17-fe6d53af61c7